[Event "Late-Titled-Tuesday-Blitz-February-13-2024"]
[Site "Chess.com"]
[Date "2024.02.13"]
[Round "8"]
[White "Jarrahi2452"]
[Black "MKlose11"]
[Result "1-0"]
[WhiteElo "2825"]
[BlackElo "2655"]
[TimeControl "180+1"]
[EndTime "15:29:50 PST"]
[Termination "Jarrahi2452 won by resignation"]

1. d4 {[%clk 0:03:00.9]} 1... Nf6 {[%clk 0:02:32.4]} 2. g3 {[%clk 0:03:00.1]}
2... c5 {[%clk 0:02:32.8]} 3. d5 {[%clk 0:02:57.3]} 3... b5 {[%clk 0:02:32.2]}
4. Bg2 {[%clk 0:02:56.9]} 4... d6 {[%clk 0:02:32.5]} 5. e4 {[%clk 0:02:55.7]}
5... g6 {[%clk 0:02:30.9]} 6. f4 {[%clk 0:02:54.9]} 6... Bg7 {[%clk 0:02:30.5]}
7. e5 {[%clk 0:02:42.8]} 7... Nfd7 {[%clk 0:02:26]} 8. e6 {[%clk 0:02:37.7]}
8... Nf6 {[%clk 0:02:18.7]} 9. exf7+ {[%clk 0:02:36]} 9... Kxf7 {[%clk
0:02:18.7]} 10. Nf3 {[%clk 0:02:35.2]} 10... h6 {[%clk 0:02:06.9]} 11. O-O
{[%clk 0:02:32.5]} 11... Re8 {[%clk 0:02:02.4]} 12. c4 {[%clk 0:02:19.7]} 12...
bxc4 {[%clk 0:01:51.1]} 13. Na3 {[%clk 0:02:19.1]} 13... Nbd7 {[%clk 0:01:51]}
14. Nxc4 {[%clk 0:02:17.5]} 14... Bb7 {[%clk 0:01:48.8]} 15. Ne3 {[%clk
0:02:12.2]} 15... Kg8 {[%clk 0:01:25.3]} 16. Rb1 {[%clk 0:02:05.8]} 16... Rb8
{[%clk 0:01:25]} 17. b3 {[%clk 0:02:05.6]} 17... e5 {[%clk 0:01:16.6]} 18. fxe5
{[%clk 0:01:55.6]} 18... Nxe5 {[%clk 0:01:16.4]} 19. Nxe5 {[%clk 0:01:54.4]}
19... Rxe5 {[%clk 0:01:16.5]} 20. Qc2 {[%clk 0:01:35.2]} 20... Qe8 {[%clk
0:01:10.2]} 21. Qd3 {[%clk 0:01:17.2]} 21... Qe7 {[%clk 0:00:32.1]} 22. Rd1
{[%clk 0:00:51.2]} 22... Re8 {[%clk 0:00:30.8]} 23. Nc4 {[%clk 0:00:48.8]} 23...
Re1+ {[%clk 0:00:29.6]} 24. Rxe1 {[%clk 0:00:49]} 24... Qxe1+ {[%clk 0:00:30.5]}
25. Bf1 {[%clk 0:00:48.5]} 25... Nxd5 {[%clk 0:00:21.4]} 26. Bb2 {[%clk
0:00:42.8]} 26... Qe7 {[%clk 0:00:11.2]} 27. Bxg7 {[%clk 0:00:37]} 27... Kxg7
{[%clk 0:00:12.1]} 28. Bg2 {[%clk 0:00:36.8]} 28... Nf6 {[%clk 0:00:08.8]} 29.
Bxb7 {[%clk 0:00:35.4]} 29... Qxb7 {[%clk 0:00:09.4]} 30. Nxd6 {[%clk
0:00:35.4]} 30... Rd8 {[%clk 0:00:09.1]} 31. Qxg6+ {[%clk 0:00:32.3]} 31... Kxg6
{[%clk 0:00:09]} 32. Nxb7 {[%clk 0:00:33.2]} 32... Rd2 {[%clk 0:00:09.4]} 33.
Nxc5 {[%clk 0:00:31.2]} 33... Rxa2 {[%clk 0:00:09.2]} 34. b4 {[%clk 0:00:30.2]}
34... Nd5 {[%clk 0:00:09.2]} 35. b5 {[%clk 0:00:28.5]} 35... Nc3 {[%clk
0:00:07.3]} 36. Rb3 {[%clk 0:00:26.9]} 36... Ne2+ {[%clk 0:00:07]} 37. Kf1
{[%clk 0:00:27.1]} 37... Nd4 {[%clk 0:00:07.3]} 38. Rb4 {[%clk 0:00:26]} 38...
Nf3 {[%clk 0:00:07]} 39. h3 {[%clk 0:00:25.1]} 39... Rc2 {[%clk 0:00:04.9]} 40.
Ne4 {[%clk 0:00:24]} 40... Kf5 {[%clk 0:00:03]} 41. Nd6+ {[%clk 0:00:20.4]}
41... Ke6 {[%clk 0:00:03]} 42. Ne4 {[%clk 0:00:18.1]} 42... Ke5 {[%clk
0:00:02.3]} 43. Nf2 {[%clk 0:00:15.8]} 43... Nh2+ {[%clk 0:00:02.5]} 44. Kg2
{[%clk 0:00:14.7]} 44... h5 {[%clk 0:00:02.6]} 45. Rh4 {[%clk 0:00:13.5]} 45...
Kf6 {[%clk 0:00:01.5]} 46. Rf4+ {[%clk 0:00:13.3]} 46... Kg5 {[%clk 0:00:01.6]}
47. Kxh2 {[%clk 0:00:13.7]} 47... h4 {[%clk 0:00:02.5]} 48. Kg2 {[%clk
0:00:11.7]} 48... hxg3 {[%clk 0:00:03.4]} 49. Kxg3 {[%clk 0:00:12.6]} 49... Rc3+
{[%clk 0:00:03.8]} 50. Rf3 {[%clk 0:00:11.8]} 50... Rc2 {[%clk 0:00:04.7]} 51.
Ne4+ {[%clk 0:00:11]} 51... Kh6 {[%clk 0:00:04.9]} 52. Rf6+ {[%clk 0:00:11.1]}
52... Kh5 {[%clk 0:00:04.9]} 53. Rf5+ {[%clk 0:00:10.6]} 53... Kg6 {[%clk
0:00:05.1]} 54. Kg4 {[%clk 0:00:10.2]} 54... Kh6 {[%clk 0:00:06]} 55. h4 {[%clk
0:00:10.4]} 55... Rb2 {[%clk 0:00:06.3]} 56. Kf4 {[%clk 0:00:10.2]} 56... Rb4
{[%clk 0:00:05.9]} 57. h5 {[%clk 0:00:10.5]} 57... Kg7 {[%clk 0:00:06.2]} 58.
Ke5 {[%clk 0:00:10.3]} 58... Kh6 {[%clk 0:00:07.1]} 59. Ke6 {[%clk 0:00:09.9]}
59... Rxe4+ {[%clk 0:00:06.6]} 60. Re5 {[%clk 0:00:10.4]} 60... Rb4 {[%clk
0:00:07.5]} 61. Kd6 {[%clk 0:00:10.8]} 61... Ra4 {[%clk 0:00:08]} 62. Kc6 {[%clk
0:00:11.2]} 62... Rc4+ {[%clk 0:00:07.2]} 63. Kb7 {[%clk 0:00:11.2]} 63... Ra4
{[%clk 0:00:08.1]} 64. Kc6 {[%clk 0:00:10.9]} 64... Ra3 {[%clk 0:00:07.6]} 65.
Kd6 {[%clk 0:00:10.7]} 65... Ra4 {[%clk 0:00:05.4]} 66. Ke7 {[%clk 0:00:10.5]}
66... a6 {[%clk 0:00:05.6]} 67. b6 {[%clk 0:00:09.1]} 67... Rb4 {[%clk
0:00:05.9]} 68. Re6+ {[%clk 0:00:09.2]} 68... Kxh5 {[%clk 0:00:06]} 69. Kd7
{[%clk 0:00:09.6]} 69... a5 {[%clk 0:00:06.5]} 70. Kc7 {[%clk 0:00:10]} 70... a4
{[%clk 0:00:07.2]} 71. b7 {[%clk 0:00:09.8]} 71... Rc4+ {[%clk 0:00:07.8]} 72.
Rc6 {[%clk 0:00:10]} 72... Rb4 {[%clk 0:00:08.3]} 73. Rb6 {[%clk 0:00:10.4]}
73... a3 {[%clk 0:00:08.8]} 74. Rxb4 {[%clk 0:00:10.2]} 1-0

[Event "Late-Titled-Tuesday-Blitz-February-13-2024"]
[Site "Chess.com"]
[Date "2024.02.13"]
[Round "8"]
[White "ansko1999"]
[Black "Conejoviejo67"]
[Result "1-0"]
[WhiteElo "2631"]
[BlackElo "2437"]
[TimeControl "180+1"]
[EndTime "15:29:55 PST"]
[Termination "ansko1999 won by resignation"]

1. g3 {[%clk 0:02:58.5]} 1... g6 {[%clk 0:02:58]} 2. c4 {[%clk 0:02:57.6]} 2...
Bg7 {[%clk 0:02:55.4]} 3. Nc3 {[%clk 0:02:58]} 3... e5 {[%clk 0:02:55.2]} 4. Bg2
{[%clk 0:02:57.3]} 4... Nc6 {[%clk 0:02:55.2]} 5. e4 {[%clk 0:02:56.5]} 5... d6
{[%clk 0:02:54.4]} 6. Nge2 {[%clk 0:02:56.1]} 6... Be6 {[%clk 0:02:49.8]} 7. d3
{[%clk 0:02:56.3]} 7... Nge7 {[%clk 0:02:48.8]} 8. O-O {[%clk 0:02:55.1]} 8...
O-O {[%clk 0:02:47.2]} 9. Be3 {[%clk 0:02:51.7]} 9... f5 {[%clk 0:02:46]} 10.
exf5 {[%clk 0:02:50.7]} 10... Nxf5 {[%clk 0:02:42.4]} 11. Bd5 {[%clk 0:02:34.7]}
11... Qd7 {[%clk 0:02:37.8]} 12. Bxe6+ {[%clk 0:02:32.8]} 12... Qxe6 {[%clk
0:02:38.7]} 13. Nd5 {[%clk 0:02:33]} 13... Rf7 {[%clk 0:02:38.1]} 14. Nec3
{[%clk 0:02:28.3]} 14... Ncd4 {[%clk 0:02:34.7]} 15. Bxd4 {[%clk 0:02:25.2]}
15... Nxd4 {[%clk 0:02:34.2]} 16. Ne4 {[%clk 0:02:21.8]} 16... Nf3+ {[%clk
0:02:24.3]} 17. Kg2 {[%clk 0:02:19.7]} 17... h6 {[%clk 0:02:08.2]} 18. Nxc7
{[%clk 0:02:12.3]} 18... Nh4+ {[%clk 0:01:47.2]} 19. gxh4 {[%clk 0:02:12.3]}
19... Rxc7 {[%clk 0:01:47]} 20. Qf3 {[%clk 0:02:08.1]} 20... Rf8 {[%clk
0:01:44.9]} 21. Qh3 {[%clk 0:02:07.5]} 21... Qxh3+ {[%clk 0:01:40.8]} 22. Kxh3
{[%clk 0:02:08.4]} 22... Rf3+ {[%clk 0:01:41.1]} 23. Kg2 {[%clk 0:02:05.7]}
23... Rxd3 {[%clk 0:01:41.5]} 24. b3 {[%clk 0:02:05]} 24... d5 {[%clk
0:01:38.4]} 25. cxd5 {[%clk 0:02:02.7]} 25... Rxd5 {[%clk 0:01:39.3]} 26. Rac1
{[%clk 0:02:01.7]} 26... Rcd7 {[%clk 0:01:35.3]} 27. Rc8+ {[%clk 0:01:59.1]}
27... Kf7 {[%clk 0:01:32.4]} 28. Rfc1 {[%clk 0:01:59.1]} 28... Bf8 {[%clk
0:01:24.7]} 29. Ra8 {[%clk 0:01:53.4]} 29... a6 {[%clk 0:01:21.4]} 30. Rcc8
{[%clk 0:01:53.1]} 30... Be7 {[%clk 0:01:20.8]} 31. Rh8 {[%clk 0:01:48]} 31...
h5 {[%clk 0:01:18.4]} 32. Kg3 {[%clk 0:01:36.7]} 32... Rd3+ {[%clk 0:01:14.8]}
33. f3 {[%clk 0:01:37]} 33... Rd1 {[%clk 0:01:14.8]} 34. Rh7+ {[%clk 0:01:28.4]}
34... Ke6 {[%clk 0:01:14.5]} 35. Re8 {[%clk 0:01:24.7]} 35... Rc1 {[%clk
0:01:02]} 36. Ng5+ {[%clk 0:01:12.4]} 36... Kd6 {[%clk 0:00:57.5]} 37. Ne4+
{[%clk 0:01:05.4]} 37... Ke6 {[%clk 0:00:57.1]} 38. Rg7 {[%clk 0:01:02.4]} 38...
Rc2 {[%clk 0:00:50.1]} 39. Ng5+ {[%clk 0:00:58.5]} 39... Kd6 {[%clk 0:00:45.8]}
40. Rxg6+ {[%clk 0:00:57]} 40... Kd5 {[%clk 0:00:41.4]} 41. Re6 {[%clk
0:00:32.7]} 41... Bd6 {[%clk 0:00:38.6]} 42. Ne4 {[%clk 0:00:29.4]} 42... Rg7+
{[%clk 0:00:38.2]} 43. Kh3 {[%clk 0:00:29.2]} 43... Bc7 {[%clk 0:00:37.3]} 44.
a4 {[%clk 0:00:22.4]} 44... Rgg2 {[%clk 0:00:35.2]} 45. Nf6+ {[%clk 0:00:16.1]}
45... Kc5 {[%clk 0:00:30.2]} 46. Rxe5+ {[%clk 0:00:06.1]} 46... Bxe5 {[%clk
0:00:29.4]} 47. Rxe5+ {[%clk 0:00:06.4]} 47... Kd6 {[%clk 0:00:28.4]} 48. Rxh5
{[%clk 0:00:04.2]} 48... Rxh2+ {[%clk 0:00:27]} 49. Kg4 {[%clk 0:00:04.8]} 49...
Ke6 {[%clk 0:00:25.5]} 50. Ne4 {[%clk 0:00:04.8]} 50... Rhg2+ {[%clk 0:00:25.2]}
51. Kf4 {[%clk 0:00:05.3]} 51... Rg6 {[%clk 0:00:24]} 52. Ng5+ {[%clk
0:00:04.6]} 52... Kd6 {[%clk 0:00:22]} 53. Ne4+ {[%clk 0:00:05.5]} 53... Ke6
{[%clk 0:00:20.5]} 54. Re5+ {[%clk 0:00:05.8]} 54... Kd7 {[%clk 0:00:19.2]} 55.
h5 {[%clk 0:00:06.2]} 55... Rg7 {[%clk 0:00:16.9]} 56. h6 {[%clk 0:00:05.8]}
56... Rf7+ {[%clk 0:00:16.9]} 57. Kg3 {[%clk 0:00:05.4]} 57... Rc6 {[%clk
0:00:16]} 58. Rh5 {[%clk 0:00:05.3]} 58... Rg6+ {[%clk 0:00:16.1]} 59. Ng5
{[%clk 0:00:04.7]} 59... Rh7 {[%clk 0:00:14.8]} 60. f4 {[%clk 0:00:02.5]} 60...
Rhxh6 {[%clk 0:00:15.3]} 61. Rxh6 {[%clk 0:00:02.7]} 61... Rxh6 {[%clk
0:00:16.2]} 62. Kg4 {[%clk 0:00:03.2]} 62... Ke7 {[%clk 0:00:16]} 63. Nf3 {[%clk
0:00:03.2]} 63... Rg6+ {[%clk 0:00:16.2]} 64. Kf5 {[%clk 0:00:03.4]} 64... Rf6+
{[%clk 0:00:16.8]} 65. Ke4 {[%clk 0:00:03.7]} 65... Re6+ {[%clk 0:00:17]} 66.
Ne5 {[%clk 0:00:03.8]} 66... Kf6 {[%clk 0:00:17.4]} 67. Kd5 {[%clk 0:00:03.5]}
67... Rb6 {[%clk 0:00:17.1]} 68. Nd7+ {[%clk 0:00:03.7]} 68... Kf5 {[%clk
0:00:17.1]} 69. Nxb6 {[%clk 0:00:04.6]} 69... Kxf4 {[%clk 0:00:16.8]} 70. Kd6
{[%clk 0:00:05]} 70... Ke3 {[%clk 0:00:17.1]} 71. b4 {[%clk 0:00:05]} 71... Kd3
{[%clk 0:00:18]} 72. a5 {[%clk 0:00:05.4]} 72... Kc3 {[%clk 0:00:18.3]} 73. Nd5+
{[%clk 0:00:06.1]} 73... Kc4 {[%clk 0:00:18.6]} 74. Kc7 {[%clk 0:00:05.3]} 74...
Kxd5 {[%clk 0:00:18.7]} 75. Kxb7 {[%clk 0:00:06]} 75... Kc4 {[%clk 0:00:19.2]}
76. Kxa6 {[%clk 0:00:06.4]} 76... Kxb4 {[%clk 0:00:20.1]} 77. Kb6 {[%clk
0:00:07.3]} 77... Kc4 {[%clk 0:00:20]} 78. a6 {[%clk 0:00:08.2]} 78... Kb4
{[%clk 0:00:20.4]} 79. a7 {[%clk 0:00:09.1]} 1-0

[Event "Late-Titled-Tuesday-Blitz-February-13-2024"]
[Site "Chess.com"]
[Date "2024.02.13"]
[Round "8"]
[White "dawid498"]
[Black "zajka-molotok"]
[Result "1-0"]
[WhiteElo "2695"]
[BlackElo "2506"]
[TimeControl "180+1"]
[EndTime "15:30:05 PST"]
[Termination "dawid498 won on time"]

1. e4 {[%clk 0:03:00.9]} 1... c5 {[%clk 0:02:58.9]} 2. Nf3 {[%clk 0:03:00.2]}
2... Nc6 {[%clk 0:02:58.2]} 3. d4 {[%clk 0:03:00]} 3... cxd4 {[%clk 0:02:58]} 4.
Nxd4 {[%clk 0:03:00.9]} 4... Nf6 {[%clk 0:02:57.9]} 5. Nc3 {[%clk 0:03:00.4]}
5... e5 {[%clk 0:02:57.7]} 6. Ndb5 {[%clk 0:03:00.3]} 6... d6 {[%clk 0:02:57.5]}
7. a4 {[%clk 0:02:54.6]} 7... Be6 {[%clk 0:02:49.9]} 8. Bg5 {[%clk 0:02:24.9]}
8... a6 {[%clk 0:02:46.3]} 9. Bxf6 {[%clk 0:02:15.8]} 9... gxf6 {[%clk
0:02:41.7]} 10. Na3 {[%clk 0:02:16.4]} 10... f5 {[%clk 0:02:38.9]} 11. Bc4
{[%clk 0:01:55]} 11... Bxc4 {[%clk 0:02:36.1]} 12. Nxc4 {[%clk 0:01:55.9]} 12...
fxe4 {[%clk 0:02:36.3]} 13. Nxe4 {[%clk 0:01:53.8]} 13... Be7 {[%clk 0:02:28.2]}
14. Ncxd6+ {[%clk 0:01:31.2]} 14... Bxd6 {[%clk 0:02:07.5]} 15. Nxd6+ {[%clk
0:01:32.1]} 15... Kf8 {[%clk 0:01:59.7]} 16. O-O {[%clk 0:01:10.5]} 16... Qd7
{[%clk 0:01:53.7]} 17. c3 {[%clk 0:01:01.5]} 17... Rd8 {[%clk 0:01:52]} 18. Ne4
{[%clk 0:01:00.3]} 18... Qf5 {[%clk 0:01:42.5]} 19. Qe2 {[%clk 0:00:59.9]} 19...
Rg8 {[%clk 0:01:39.8]} 20. Rfd1 {[%clk 0:00:55.9]} 20... Qg6 {[%clk 0:01:38.2]}
21. g3 {[%clk 0:00:43.5]} 21... h5 {[%clk 0:01:34.2]} 22. Rxd8+ {[%clk
0:00:34.3]} 22... Nxd8 {[%clk 0:01:35.1]} 23. Rd1 {[%clk 0:00:34.6]} 23... Ne6
{[%clk 0:01:34.6]} 24. Qf3 {[%clk 0:00:34.4]} 24... Kg7 {[%clk 0:01:26.1]} 25.
Rd7 {[%clk 0:00:24.4]} 25... h4 {[%clk 0:01:23]} 26. Nd6 {[%clk 0:00:17.4]}
26... Ng5 {[%clk 0:01:21.5]} 27. Qf5 {[%clk 0:00:17.6]} 27... Qxf5 {[%clk
0:01:12]} 28. Nxf5+ {[%clk 0:00:18.5]} 28... Kf6 {[%clk 0:01:12.4]} 29. Nxh4
{[%clk 0:00:18.5]} 29... b5 {[%clk 0:01:07.3]} 30. axb5 {[%clk 0:00:15.9]} 30...
axb5 {[%clk 0:01:08.2]} 31. Kg2 {[%clk 0:00:16.5]} 31... e4 {[%clk 0:01:03.2]}
32. Rd5 {[%clk 0:00:14.2]} 32... Ne6 {[%clk 0:00:52]} 33. Rf5+ {[%clk
0:00:12.1]} 33... Ke7 {[%clk 0:00:51.1]} 34. Re5 {[%clk 0:00:12.3]} 34... Rd8
{[%clk 0:00:43.5]} 35. Rxe4 {[%clk 0:00:11.8]} 35... Rd2 {[%clk 0:00:43.8]} 36.
b3 {[%clk 0:00:09.8]} 36... Rc2 {[%clk 0:00:42.2]} 37. Re3 {[%clk 0:00:08]}
37... Rb2 {[%clk 0:00:41.3]} 38. b4 {[%clk 0:00:08]} 38... Kf6 {[%clk
0:00:38.6]} 39. Nf3 {[%clk 0:00:07.6]} 39... Kg7 {[%clk 0:00:25.7]} 40. Re5
{[%clk 0:00:07.4]} 40... Rb3 {[%clk 0:00:21.5]} 41. Rxb5 {[%clk 0:00:07.2]}
41... Rxc3 {[%clk 0:00:21.7]} 42. Re5 {[%clk 0:00:07.2]} 42... Rb3 {[%clk
0:00:21.5]} 43. b5 {[%clk 0:00:07.1]} 43... Rb2 {[%clk 0:00:19.6]} 44. h4 {[%clk
0:00:06.5]} 44... Nc7 {[%clk 0:00:18.6]} 45. Rg5+ {[%clk 0:00:05.6]} 45... Kf8
{[%clk 0:00:17.9]} 46. Rf5 {[%clk 0:00:04.9]} 46... Nxb5 {[%clk 0:00:16.9]} 47.
Ng5 {[%clk 0:00:02.2]} 47... Nd6 {[%clk 0:00:16.3]} 48. Rd5 {[%clk 0:00:02]}
48... Ke7 {[%clk 0:00:14.5]} 49. Re5+ {[%clk 0:00:01.7]} 49... Kf6 {[%clk
0:00:13.8]} 50. Re1 {[%clk 0:00:01.3]} 50... Nf5 {[%clk 0:00:11.6]} 51. Nf3
{[%clk 0:00:02.2]} 51... Kg7 {[%clk 0:00:10.6]} 52. Ng5 {[%clk 0:00:02]} 52...
f6 {[%clk 0:00:10]} 53. Nh3 {[%clk 0:00:02.4]} 53... Nh6 {[%clk 0:00:08.7]} 54.
Nf4 {[%clk 0:00:02.9]} 54... Ng4 {[%clk 0:00:08.7]} 55. Re2 {[%clk 0:00:03.7]}
55... Rb1 {[%clk 0:00:07.9]} 56. f3 {[%clk 0:00:04.1]} 56... Ne5 {[%clk
0:00:07.1]} 57. Nh5+ {[%clk 0:00:02.5]} 57... Kf7 {[%clk 0:00:06.3]} 58. Nf4
{[%clk 0:00:02.9]} 58... Rb3 {[%clk 0:00:05.7]} 59. Rf2 {[%clk 0:00:03.4]} 59...
Ra3 {[%clk 0:00:05.4]} 60. Nh3 {[%clk 0:00:03.7]} 60... Nd3 {[%clk 0:00:05]} 61.
Re2 {[%clk 0:00:03.2]} 61... Ne5 {[%clk 0:00:04.5]} 62. Ng1 {[%clk 0:00:03.9]}
62... Ra1 {[%clk 0:00:03.9]} 63. g4 {[%clk 0:00:03.2]} 63... Ra3 {[%clk
0:00:02.7]} 64. Rf2 {[%clk 0:00:02.9]} 64... Ra1 {[%clk 0:00:02.9]} 65. Nh3
{[%clk 0:00:02.8]} 65... Rb1 {[%clk 0:00:02.7]} 66. Kg3 {[%clk 0:00:02.8]} 66...
Rb3 {[%clk 0:00:01.4]} 67. h5 {[%clk 0:00:02.8]} 67... Ra3 {[%clk 0:00:01.6]}
68. Nf4 {[%clk 0:00:02.5]} 68... Nc4 {[%clk 0:00:01.2]} 69. Nd5 {[%clk
0:00:02.2]} 69... Ne5 {[%clk 0:00:01.3]} 70. Nf4 {[%clk 0:00:02.5]} 70... Nc4
{[%clk 0:00:01.3]} 71. Rf1 {[%clk 0:00:02.6]} 71... Ne5 {[%clk 0:00:01.6]} 72.
Ng2 {[%clk 0:00:02.4]} 72... Nc4 {[%clk 0:00:01.5]} 73. Nh4 {[%clk 0:00:02.9]}
73... Ne5 {[%clk 0:00:01.6]} 74. Rf2 {[%clk 0:00:02.6]} 74... Rb3 {[%clk
0:00:01.9]} 75. Rc2 {[%clk 0:00:02.9]} 75... Ra3 {[%clk 0:00:01.4]} 76. Rc7+
{[%clk 0:00:03.6]} 76... Kg8 {[%clk 0:00:01]} 77. Rc8+ {[%clk 0:00:04.5]} 1-0

[Event "Late-Titled-Tuesday-Blitz-February-13-2024"]
[Site "Chess.com"]
[Date "2024.02.13"]
[Round "8"]
[White "sansanathalia"]
[Black "mjelcic"]
[Result "1-0"]
[WhiteElo "2385"]
[BlackElo "2218"]
[TimeControl "180+1"]
[EndTime "15:30:24 PST"]
[Termination "sansanathalia won by checkmate"]

1. d4 {[%clk 0:02:53.4]} 1... b6 {[%clk 0:02:55]} 2. Nf3 {[%clk 0:02:47.4]} 2...
Bb7 {[%clk 0:02:55.1]} 3. e3 {[%clk 0:02:45.1]} 3... e6 {[%clk 0:02:54]} 4. Be2
{[%clk 0:02:39.4]} 4... Nf6 {[%clk 0:02:54.1]} 5. O-O {[%clk 0:02:35.9]} 5... c5
{[%clk 0:02:54.2]} 6. b3 {[%clk 0:02:33.9]} 6... d5 {[%clk 0:02:54]} 7. Bb2
{[%clk 0:02:31.2]} 7... Nbd7 {[%clk 0:02:53.7]} 8. Nbd2 {[%clk 0:02:29.2]} 8...
Be7 {[%clk 0:02:47.8]} 9. c4 {[%clk 0:02:17.7]} 9... O-O {[%clk 0:02:47.4]} 10.
Rc1 {[%clk 0:02:14.4]} 10... Rc8 {[%clk 0:02:46.9]} 11. Ne5 {[%clk 0:02:10.1]}
11... Rc7 {[%clk 0:02:44.7]} 12. f4 {[%clk 0:01:57.8]} 12... Qa8 {[%clk
0:02:41]} 13. Bf3 {[%clk 0:01:54.5]} 13... Rfc8 {[%clk 0:02:35.8]} 14. Qe2
{[%clk 0:01:50.6]} 14... cxd4 {[%clk 0:02:28.7]} 15. exd4 {[%clk 0:01:46.8]}
15... dxc4 {[%clk 0:02:28]} 16. Bxb7 {[%clk 0:01:30.3]} 16... Qxb7 {[%clk
0:02:28.9]} 17. Ndxc4 {[%clk 0:01:26.5]} 17... Qe4 {[%clk 0:02:14.6]} 18. Qxe4
{[%clk 0:01:18.3]} 18... Nxe4 {[%clk 0:02:15.5]} 19. Nxd7 {[%clk 0:01:18.2]}
19... Rxd7 {[%clk 0:02:13.3]} 20. Rfe1 {[%clk 0:01:02.3]} 20... Nf6 {[%clk
0:02:10.3]} 21. Kf2 {[%clk 0:00:45.8]} 21... Nd5 {[%clk 0:02:07.3]} 22. g3
{[%clk 0:00:43.6]} 22... Rdc7 {[%clk 0:02:06.3]} 23. Kf3 {[%clk 0:00:36]} 23...
Bb4 {[%clk 0:02:04.2]} 24. Red1 {[%clk 0:00:31.1]} 24... b5 {[%clk 0:02:00.1]}
25. Ne5 {[%clk 0:00:30.2]} 25... Rxc1 {[%clk 0:01:55.8]} 26. Rxc1 {[%clk
0:00:29.7]} 26... Rxc1 {[%clk 0:01:54.5]} 27. Bxc1 {[%clk 0:00:29.4]} 27... a6
{[%clk 0:01:44.6]} 28. Nd3 {[%clk 0:00:26]} 28... Bd6 {[%clk 0:01:35.9]} 29. Nc5
{[%clk 0:00:22.4]} 29... Bxc5 {[%clk 0:01:34.3]} 30. dxc5 {[%clk 0:00:20.9]}
30... Kf8 {[%clk 0:01:34.1]} 31. Bd2 {[%clk 0:00:19.5]} 31... b4 {[%clk
0:01:27.8]} 32. Ke4 {[%clk 0:00:18.2]} 32... Ke7 {[%clk 0:01:27.1]} 33. Kd4
{[%clk 0:00:18.3]} 33... Kd7 {[%clk 0:01:11.5]} 34. Kc4 {[%clk 0:00:18.1]} 34...
Kc6 {[%clk 0:01:08.3]} 35. Bxb4 {[%clk 0:00:17.6]} 35... Ne3+ {[%clk 0:01:06.6]}
36. Kd3 {[%clk 0:00:16.4]} 36... Nf1 {[%clk 0:01:02.1]} 37. Bc3 {[%clk
0:00:11.8]} 37... Nxh2 {[%clk 0:01:00.9]} 38. Bxg7 {[%clk 0:00:10.5]} 38... Kxc5
{[%clk 0:00:55.6]} 39. Bf8+ {[%clk 0:00:10.9]} 39... Kd5 {[%clk 0:00:52.5]} 40.
Ke2 {[%clk 0:00:09.2]} 40... h5 {[%clk 0:00:51.7]} 41. a4 {[%clk 0:00:08.2]}
41... Ng4 {[%clk 0:00:49]} 42. Kf3 {[%clk 0:00:08]} 42... Nf6 {[%clk 0:00:48]}
43. Kg2 {[%clk 0:00:07.6]} 43... Ne4 {[%clk 0:00:45]} 44. Kh3 {[%clk 0:00:06.6]}
44... Nc5 {[%clk 0:00:42.4]} 45. Bxc5 {[%clk 0:00:03.7]} 45... Kxc5 {[%clk
0:00:43.3]} 46. Kh4 {[%clk 0:00:04.3]} 46... Kb4 {[%clk 0:00:41.9]} 47. Kxh5
{[%clk 0:00:04.9]} 47... Kxb3 {[%clk 0:00:42.3]} 48. Kg5 {[%clk 0:00:05]} 48...
Kxa4 {[%clk 0:00:42.5]} 49. Kf6 {[%clk 0:00:05.7]} 49... Kb4 {[%clk 0:00:36.5]}
50. Kxf7 {[%clk 0:00:06.1]} 50... a5 {[%clk 0:00:37]} 51. Kxe6 {[%clk
0:00:06.7]} 51... a4 {[%clk 0:00:37.4]} 52. f5 {[%clk 0:00:07.5]} 52... a3
{[%clk 0:00:37.9]} 53. f6 {[%clk 0:00:08.2]} 53... a2 {[%clk 0:00:37.9]} 54. f7
{[%clk 0:00:08.8]} 54... a1=Q {[%clk 0:00:37.3]} 55. f8=Q+ {[%clk 0:00:09.3]}
55... Kc4 {[%clk 0:00:37.3]} 56. Qf4+ {[%clk 0:00:09.7]} 56... Kd3 {[%clk
0:00:36.8]} 57. Kf5 {[%clk 0:00:07.9]} 57... Ke2 {[%clk 0:00:36.2]} 58. g4
{[%clk 0:00:06.6]} 58... Qg7 {[%clk 0:00:32.8]} 59. Qe4+ {[%clk 0:00:05.7]}
59... Kf2 {[%clk 0:00:30.9]} 60. g5 {[%clk 0:00:04.8]} 60... Qf7+ {[%clk
0:00:30.3]} 61. Kg4 {[%clk 0:00:05.3]} 61... Qg7 {[%clk 0:00:22.6]} 62. Qf5+
{[%clk 0:00:04.3]} 62... Kg2 {[%clk 0:00:22]} 63. g6 {[%clk 0:00:04.3]} 63...
Qd4+ {[%clk 0:00:20.4]} 64. Qf4 {[%clk 0:00:03.6]} 64... Qd7+ {[%clk 0:00:20.5]}
65. Kg5 {[%clk 0:00:03.7]} 65... Qe7+ {[%clk 0:00:21]} 66. Qf6 {[%clk
0:00:03.6]} 66... Qe3+ {[%clk 0:00:21.2]} 67. Qf4 {[%clk 0:00:02.9]} 67... Qe7+
{[%clk 0:00:21.3]} 68. Kh6 {[%clk 0:00:03.3]} 68... Qe6 {[%clk 0:00:18.6]} 69.
Kh7 {[%clk 0:00:03.1]} 69... Qh3+ {[%clk 0:00:17.7]} 70. Kg8 {[%clk 0:00:03.6]}
70... Qc8+ {[%clk 0:00:16.6]} 71. Qf8 {[%clk 0:00:04]} 71... Qe6+ {[%clk
0:00:16]} 72. Qf7 {[%clk 0:00:04.5]} 72... Qc8+ {[%clk 0:00:16.3]} 73. Kh7
{[%clk 0:00:04]} 73... Qh3+ {[%clk 0:00:15.8]} 74. Kg7 {[%clk 0:00:03.9]} 74...
Qc3+ {[%clk 0:00:15.8]} 75. Qf6 {[%clk 0:00:04.5]} 75... Qc7+ {[%clk 0:00:14.7]}
76. Kf8 {[%clk 0:00:05.1]} 76... Qc8+ {[%clk 0:00:14.2]} 77. Ke7 {[%clk
0:00:05.1]} 77... Qc7+ {[%clk 0:00:13.9]} 78. Ke6 {[%clk 0:00:03.4]} 78... Qc4+
{[%clk 0:00:13.3]} 79. Kf5 {[%clk 0:00:02.4]} 79... Qd5+ {[%clk 0:00:12.2]} 80.
Kg4 {[%clk 0:00:01.3]} 80... Qd7+ {[%clk 0:00:07.1]} 81. Kg5 {[%clk 0:00:01.5]}
81... Qd2+ {[%clk 0:00:04.2]} 82. Qf4 {[%clk 0:00:01.6]} 82... Qd5+ {[%clk
0:00:05.1]} 83. Qf5 {[%clk 0:00:01.9]} 83... Qd8+ {[%clk 0:00:04.9]} 84. Kg4
{[%clk 0:00:02.1]} 84... Qa5 {[%clk 0:00:05.8]} 85. Qxa5 {[%clk 0:00:01.7]}
85... Kf2 {[%clk 0:00:04.4]} 86. g7 {[%clk 0:00:02]} 86... Ke2 {[%clk
0:00:05.3]} 87. g8=Q {[%clk 0:00:02.4]} 87... Kd1 {[%clk 0:00:06]} 88. Qga2
{[%clk 0:00:01.9]} 88... Kc1 {[%clk 0:00:05.7]} 89. Qe1# {[%clk 0:00:02.5]} 1-0